Cogmind - Beta 17.1 @@@ ROGUE MODE // 2026.09.22 @ 22:13:23 Player: Matt Result: Destroyed by D-53 Grenadier with Mini Grenade Launcher Performance ------------- Evolutions (0) 0 Regions Visited (4) 800 Robots Destroyed (25) 125 Value Destroyed (640) 640 Prototype IDs (0) 0 Alien Tech Used (0) 0 Bonus (0) 0 TOTAL SCORE: 1565 Bonus ------- None Cogmind --------- Core Integrity 0/250 Matter 400/400 Energy 100/100 System Corruption 1% Temperature Cool (0) Movement Walking (120) Location -9/Recycling Parts ------- > --- POWER (1) -------- (None) > --- PROPULSION (2) --- Aluminum Leg Aluminum Leg > --- UTILITY (2) ------ Small Storage Unit Medium Matter Pod > --- WEAPON (2) ------- Subdweller Beam Cannon Assault Rifle > --- INVENTORY (8) ---- Aluminum Leg Small Storage Unit Medium Matter Pod (77) Light Assault Rifle Subdweller Shrapnel Launcher Peak State ------------ > --- POWER ------------ Ion Engine > --- PROPULSION ------- Aluminum Leg Aluminum Leg > --- UTILITY ---------- Small Storage Unit Medium Matter Pod > --- WEAPON ----------- Light Assault Rifle Subdweller Shrapnel Launcher > --- INVENTORY -------- Aluminum Leg Medium Matter Pod [Rating: 8] Favorites ----------- Power Ion Engine Engine Ion Engine Propulsion Aluminum Leg Leg Aluminum Leg Utility Small Storage Unit Storage Small Storage Unit Weapon Assault Rifle Energy Cannon Subdweller Beam Cannon Ballistic Gun Assault Rifle Launcher Subdweller Shrapnel Launcher Build | -11 -10 -10 -10 -9 ------- Run | Yrd Mat Min Sub Rec Slots Evolved . | . . . . . Power . | . . . . . Propulsion . | . . . . . Utility . | . . . . . Weapon . | . . . . . Parts Attached 21 | 6 4 1 7 3 Power 2 | 1 . . 1 . Engine 2 | 1 . . 1 . Core . | . . . . . Reactor . | . . . . . Propulsion 7 | 2 2 1 2 . Treads . | . . . . . Leg 7 | 2 2 1 2 . Wheel . | . . . . . Hover . | . . . . . Flight . | . . . . . Utility 3 | 1 1 . . 1 Device . | . . . . . Storage 3 | 1 1 . . 1 Processor . | . . . . . Hackware . | . . . . . Protection . | . . . . . Artifact . | . . . . . Weapon 9 | 2 1 . 4 2 Energy Gun . | . . . . . Energy Cannon 1 | . . . . 1 Ballistic Gun 5 | 2 1 . 1 1 Ballistic Cannon . | . . . . . Launcher 3 | . . . 3 . Special Weapon . | . . . . . Impact Weapon . | . . . . . Slashing Weapon . | . . . . . Piercing Weapon . | . . . . . Special Melee Weapon . | . . . . . Unidentified Prototypes . | . . . . . Parts Lost 7 | . . . 6 1 Power 1 | . . . . 1 Propulsion 2 | . . . 2 . Utility . | . . . . . Weapon 4 | . . . 4 . Highest Loss Streak 4 | . . . 4 1 To Critical Strikes . | . . . . . Average Backups 5 | . 6 8 3 4 Power . | . 1 1 . . Propulsion 1 | . 2 3 1 1 Utility . | . . 1 1 1 Weapon 2 | . 3 3 . 1 Tool/Special . | . . . . . Unused Backups 2 | . 1 . . 1 Power . | . . . . . Propulsion 1 | . . . . 1 Utility . | . . . . . Weapon 1 | . 1 . . . Tool/Special . | . . . . . Average Slot Usage (%) 93 | . 85 100 94 100 Engine 14 | . 14 14 14 14 Leg 26 | . 27 28 23 28 Storage 22 | . 14 28 28 28 Energy Cannon 2 | . . . . 12 Ballistic Gun 21 | . 28 28 15 14 Launcher 3 | . . . 11 1 Peak Build Rating 8 | 6 7 7 8 8 Average Rating 6 | 4 6 7 7 7 On Entrance 5 | . 6 7 7 8 Avg Prop Armor Cover (%) . | . . . . . Naked Turns . | . . . . . Heaviest Build 22 | 14 16 16 21 22 Greatest Support 20 | 20 20 20 20 20 Greatest Overweight (x) 5 | 3 1 . 5 1 Average Overweight (x) . | . . . . . Largest Inventory Capacity 8 | 8 8 8 8 8 Average Capacity 7 | 7 8 8 8 8 Most Carried 8 | 2 8 8 8 5 Average Carried 5 | . 6 8 3 4 Final Capacity 8 | 8 8 8 8 8 Final Carried 8 | 2 8 8 3 5 Class Distribution -------------------- 100% | Mutant Dominant Class ---------------- Mutant | -10/Materials Mutant | -10/Mines Mutant | -10/Subcaves Mutant | -9/Recycling Resources | -11 -10 -10 -10 -9 ----------- Run | Yrd Mat Min Sub Rec Matter Collected 1047 | 36 456 87 207 261 Remotely . | . . . . . Salvage Created 635 | . 347 87 121 80 Parts 50 | . 30 4 12 4 Haulers Intercepted . | . . . . . Recyclers Shooed 1 | . 1 . . . Parts Field Recycled . | . . . . . Retrieved Matter . | . . . . . Parts Self-Destructed 5 | . . . 5 . Prevented . | . . . . . Parts Restored . | . . . . . Kills | -11 -10 -10 -10 -9 ------- Run | Yrd Mat Min Sub Rec Combat Hostiles Destroyed 20 | . 9 2 7 2 Guns 12 | . 9 2 1 . Cannons 2 | . . . . 2 AOE 6 | . . . 6 . Classes Destroyed 8 | . 4 . 2 2 Worker 1 | . 1 . . . Turret 2 | . . . 2 . Watcher 2 | . 2 . . . Swarmer 7 | . 3 . 4 . Grunt 8 | . 6 2 . . Duelist 1 | . . . . 1 Protector 1 | . . . . 1 Subdweller 3 | . . . 3 . Best Kill Streak 6 | . 4 2 6 1 Combat Bots Only 6 | . 3 2 6 1 Max Kills in Single Turn 3 | . 1 1 3 1 Gunslinging . | . . . . . Exploded 3 | . . . 3 . Melee . | . . . . . Uniques/NPCs Destroyed . | . . . . . Combat | -11 -10 -10 -10 -9 -------- Run | Yrd Mat Min Sub Rec Hostile Shots Fired 206 | . 41 8 151 6 Missed 75 | . 13 4 57 1 Hits 131 | . 28 4 94 5 Melee 1 | . . . . 1 Projectile 130 | . 28 4 94 4 AOE 1 | . . . . 1 Damage Taken 1286 | . 297 57 814 118 Core 252 | . 69 . 161 22 Absorbed by Shields . | . . . . . Core Remaining (%) 100 | 100 . . . . Volleys Fired 68 | . 32 5 26 5 Largest 2 | . 2 2 2 2 Hottest 100 | . 40 40 60 100 Shots Fired 128 | . 64 10 44 10 Gun 107 | . 64 10 28 5 Cannon 5 | . . . . 5 Launcher 16 | . . . 16 . Special . | . . . . . Kinetic 110 | . 64 10 31 5 Thermal 5 | . . . . 5 Explosive 13 | . . . 13 . Electromagnetic . | . . . . . Robot Hit Streak 12 | . 6 12 10 4 Robot Miss Streak 6 | . 6 . 3 2 Penetration Max . | . . . . . Secondary Targets 1 | . . 1 . . Max Gunslinging Chain 1 | . . 1 . . Shots Hit Robots 63 | . 32 9 17 5 Core Hits 46 | . 19 5 18 4 Critical Kills . | . . . . . Critical Parts Destroyed . | . . . . . Critical Strikes . | . . . . . Melee Attacks . | . . . . . Impact . | . . . . . Slashing . | . . . . . Piercing . | . . . . . Sneak Attacks . | . . . . . Combat Hostiles . | . . . . . Follow-up Attacks . | . . . . . Damage Inflicted 1234 | . 484 114 537 99 Guns 726 | . 484 114 103 25 Cannons 74 | . . . . 74 Explosions 434 | . . . 434 . Melee . | . . . . . Ramming . | . . . . . Kinetic 726 | . 484 114 103 25 Thermal 74 | . . . . 74 Explosive 434 | . . . 434 . Electromagnetic . | . . . . . Impact . | . . . . . Slashing . | . . . . . Piercing . | . . . . . Highest Corruption 1 | . . . . 1 Average Corruption 1 | . . . . 1 Corruption Purged . | . . . . . Corruption Blocked . | . . . . . Overload Shots . | . . . . . Overflow Damage . | . . . . . Projectiles . | . . . . . Explosions . | . . . . . Melee . | . . . . . Knockbacks . | . . . . . Impact . | . . . . . Kinetic . | . . . . . Secondary . | . . . . . Self-Inflicted Damage 31 | . . . 31 . Shots 2 | . . . 2 . Rammed . | . . . . . Targets Rammed . | . . . . . Kicked . | . . . . . Crushed . | . . . . . Highest Temperature 140 | . . 6 15 140 Average Temperature 43 | . . 3 8 59 Received Heat Transfer 486 | . 117 33 336 . Siege Activations . | . . . . . Martial Activations . | . . . . . Shielding Activations . | . . . . . Robots Disrupted . | . . . . . Combat Hostiles . | . . . . . Robots Corrupted . | . . . . . Combat Hostiles . | . . . . . Parts Fried . | . . . . . Impact Corruptions . | . . . . . Robots Melted . | . . . . . Combat Hostiles . | . . . . . Parts Melted . | . . . . . Heat Transferred 102 | . . . . 102 Parts Sabotaged . | . . . . . Parts Stolen . | . . . . . Parts Stripped . | . . . . . Power Chain Reactions . | . . . . . Alert | -11 -10 -10 -10 -9 ------- Run | Yrd Mat Min Sub Rec Maximum Alert Level . | . . . . . Low Security (%) 100 | 100 100 100 . 100 Level 1 . | . . . . . Level 2 . | . . . . . Level 3 . | . . . . . Level 4 . | . . . . . Level 5 . | . . . . . High Security . | . . . . . Max Security . | . . . . . Peak Influence 96 | . 96 75 . 21 Initial 25 | . . 25 . . Average 28 | . 48 22 . 1 Influence Increases 499 | . 287 50 135 27 Destroy 0b10 Robot/C 360 | . 180 40 120 20 Destroy 0b10 Robot/NC 20 | . 15 . . 5 Destroy Leader 54 | . 44 10 . . Destroy Structure 5 | . 3 . . 2 Lose Combat Pursuer 60 | . 45 . 15 . Influence Decreases 499 | . 220 117 135 27 Entered New Map 42 | . . 42 . . Time Decay 407 | . 220 75 85 27 Lost Part 50 | . . . 50 . Squads Dispatched 3 | . 3 . . . Investigation 2 | . 2 . . . Extermination . | . . . . . Reinforcement 1 | . 1 . . . Assault . | . . . . . Garrison . | . . . . . Intercept . | . . . . . Searches Triggered . | . . . . . Construction Impeded . | . . . . . Haulers Reinforced . | . . . . . Active Scanning Responses . | . . . . . Cargo Convoy Interrupts . | . . . . . Stealth | -11 -10 -10 -10 -9 --------- Run | Yrd Mat Min Sub Rec Distress Signals 2 | . 1 1 . . Communications Jammed . | . . . . . Distress Signals . | . . . . . Times Spotted 32 | . 17 2 9 4 Peak Tracking Total 6 | . 5 1 6 2 Tactical Retreats 3 | . 2 . 1 . Traps | -11 -10 -10 -10 -9 ------- Run | Yrd Mat Min Sub Rec Traps Triggered 2 | . 2 . . . Indirectly . | . . . . . Trap Hack Attempts . | . . . . . Triggered . | . . . . . Disarmed . | . . . . . Reprogrammed . | . . . . . Reused . | . . . . . Traps Extracted . | . . . . . Installed . | . . . . . Triggered . | . . . . . Machines | -11 -10 -10 -10 -9 ---------- Run | Yrd Mat Min Sub Rec Machines Disabled 1 | . . . 1 . Max in Single Turn 1 | . . . 1 . Machines Repaired . | . . . . . Machines Dismantled . | . . . . . Machines Sabotaged . | . . . . . Overloaded Fab Kills . | . . . . . Hacking | -11 -10 -10 -10 -9 --------- Run | Yrd Mat Min Sub Rec Machines Accessed . | . . . . . Terminals . | . . . . . Fabricators . | . . . . . Repair Stations . | . . . . . Recycling Units . | . . . . . Scanalyzers . | . . . . . Garrison Access . | . . . . . Total Hacks . | . . . . . Successful . | . . . . . Failed . | . . . . . Catastrophic . | . . . . . Database Lockouts . | . . . . . Manual . | . . . . . Terminals . | . . . . . Fabricators . | . . . . . Repair Stations . | . . . . . Recycling Units . | . . . . . Scanalyzers . | . . . . . Garrison Access . | . . . . . Terminal Hacks . | . . . . . Fabricator Hacks . | . . . . . Repair Station Hacks . | . . . . . Recycling Unit Hacks . | . . . . . Scanalyzer . | . . . . . Garrison Access Hacks . | . . . . . Unauthorized Hacks . | . . . . . Terminals . | . . . . . Fabricators . | . . . . . Repair Stations . | . . . . . Recycling Units . | . . . . . Scanalyzers . | . . . . . Garrison Access . | . . . . . Data Cores Recovered . | . . . . . Used . | . . . . . Hacking Detections . | . . . . . Full Trace Events . | . . . . . Feedback Events . | . . . . . Feedback Blocked . | . . . . . Robot Schematics Acquired . | . . . . . Robots Built . | . . . . . Authchips . | . . . . . Time . | . . . . . Total Robot Build Rating . | . . . . . Part Schematics Acquired . | . . . . . Parts Built . | . . . . . Authchips . | . . . . . Time . | . . . . . Total Part Build Rating . | . . . . . Part Studies Acquired . | . . . . . Parts Repaired . | . . . . . Time . | . . . . . Parts Recycled . | . . . . . Recycled Matter . | . . . . . Retrieved Matter . | . . . . . Retrieved Components . | . . . . . Parts Scanalyzed . | . . . . . Part Schematics Acquired . | . . . . . Parts Damaged . | . . . . . Bothacking | -11 -10 -10 -10 -9 ------------ Run | Yrd Mat Min Sub Rec Used RIF Installer . | . . . . . Robots Hacked . | . . . . . Non-combat . | . . . . . Combat . | . . . . . Robot Hacks Applied . | . . . . . Relay Couplers Released . | . . . . . Fabnet Peak Effective % . | . . . . . Robots Rewired . | . . . . . Allies Hacked . | . . . . . Hacks Repelled . | . . . . . Allies | -11 -10 -10 -10 -9 -------- Run | Yrd Mat Min Sub Rec Total Allies . | . . . . . Largest Group . | . . . . . Highest-Rated Group . | . . . . . Highest-Rated Ally . | . . . . . Total Orders . | . . . . . Ally Attacks . | . . . . . Total Damage . | . . . . . Kills . | . . . . . Allies Corrupted . | . . . . . Allies Melted . | . . . . . Intel | -11 -10 -10 -10 -9 ------- Run | Yrd Mat Min Sub Rec Active Infowar (turns) . | . . . . . Robot Analysis Total . | . . . . . Derelict Logs Recovered . | . . . . . Drone Launches . | . . . . . Drone Recoveries . | . . . . . Exploration | -11 -10 -10 -10 -9 ------------- Run | Yrd Mat Min Sub Rec Turns Passed 1647 | 63 593 263 405 323 Spaces Moved 975 | 43 376 206 191 159 Core 24 | 11 . . 13 . Treads . | . . . . . Legs 951 | 32 376 206 178 159 Wheels . | . . . . . Hover . | . . . . . Flight . | . . . . . Fastest Speed 50 | 50 120 120 120 120 Average Speed 141 | 121 120 120 172 188 Slowest Speed 300 | 200 190 120 300 190 Overloaded Moves . | . . . . . Propulsion Burnouts . | . . . . . Robots Hopped . | . . . . . Potential Cave-ins . | . . . . . Cave-ins Triggered . | . . . . . Exploration Rate (%) 25 | 4 52 35 9 26 Regions Visited 4 Branch Regions 3 Pre-discovered Areas . | . . . . . Known Exits Taken . | . . . . . Unknown Exits Taken 4 | 1 1 1 1 . Scrap Searched . | . . . . . Spaces Dug . | . . . . . Terrain Destroyed 63 | . . . 61 2 Melee . | . . . . . Projectile 2 | . . . . 2 AOE 61 | . . . 61 . Terrain Rammed . | . . . . . Walls Destroyed . | . . . . . Machines Disabled . | . . . . . Actions | -11 -10 -10 -10 -9 --------- Run | Yrd Mat Min Sub Rec Total 1114 | 50 452 212 227 173 Wait 29 | . 25 . . 4 Move 971 | 42 375 205 190 159 Hop . | . . . . . Pick Up 11 | 2 8 . 1 . Fast Attach 9 | 6 2 . 1 . Attach 8 | . 1 . 6 1 Detach 2 | . . . 1 1 Swap 7 | . 3 1 1 2 Drop 8 | . 6 1 1 . Fire 68 | . 32 5 26 5 Melee . | . . . . . Ram . | . . . . . Kick . | . . . . . Crush . | . . . . . Escape Stasis . | . . . . . Rewire 1 | . . . . 1 Trap . | . . . . . Miscellaneous . | . . . . . Route ------- -11/Scrapyard -10/Materials (discovered 2 exits: [*Mat] / [*Min]) -10/Mines -10/Subcaves -9/Recycling History --------- Turn | Location | Event 14 | -11/Scrapyard | Discovered new exit (range 15) 64 | -11/Scrapyard | Entered Materials 260 | -10/Materials | Discovered new exit (range 5) 307 | -10/Materials | Build established: Mutant 616 | -10/Materials | Discovered new exit (range 16) 657 | -10/Materials | Entered Mines 737 | -10/Mines | Assembled infested the area 795 | -10/Mines | Found a damaged Exp. Sensor Array with a note attached 909 | -10/Mines | Discovered new exit (range 6) 920 | -10/Mines | Entered Subcaves 972 | -10/Subcaves | Core integrity fell below 50% 1023 | -10/Subcaves | Discovered new exit (range 12) 1038 | -10/Subcaves | Core integrity fell below 20% 1086 | -10/Subcaves | Lost 4 parts (2n2w) 1120 | -10/Subcaves | Shifting Twisted Machinery released Sub. Beam Cannon 1325 | -10/Subcaves | Entered Recycling 1326 | -9/Recycling | Met a Zionite searching for Scraptown 1648 | -9/Recycling | Destroyed by D-53 Grenadier with Mini Grenade Launcher Last Messages --------------- 01328_ UP-7VG(z): "Anyway I've been here searching too long already, time to slink back to the caves before I'm caught. You'd best do the same." 01369_ Attempting to rewire R-06 Scavenger. 01369_ R-06 Scavenger is unpowered. 01414_ Acquired 58 matter. 01421_ Acquired 100 matter. 01424_ L-31 Rogue springs to life. 01431_ L-31 Rogue destroyed. 01433_ Acquired 53 matter. 01445_ R-06 Scavenger collects Imp. Aluminum Leg. 01447_ R-06 Scavenger collects Core Shielding. 01498_ I-25 Savior destroyed. 01499_ Acquired 27 matter. 01505_ R-06 Scavenger collects Power Amplifier. 01510_ R-06 Scavenger collects Com. Battery. 01629_ Acquired 23 matter. 01643_ Ion Engine destroyed. Map ----- +----------------------------------------------------+ | ?????????????????????????????????????????????????? | | ?????????????????????????????????????????????????? | | ?????????????????????????????????????????????????? | | ?????????????????????????????????????????????????? | | ?????????????????????????????????????????????????? | | ?????????????????????????????????????????????????? | | ?????????????????????????????????????????????????? | | ?????????????????????????????????????????????????? | | ?????????????????????????????????????????????????? | | ?????????????????????????????????????????????????? | | ?????????????????????????????????????????????????? | | ?????????????????????????????????????????????????? | | ????????????????????##???????????????????????????? | | ??????????????????###r##########?????????????????? | | ??????????????????# #?????????????????? | | ??????????????????# #?????????????????? | | ??????????????????# #?????????????????? | | ??????????????????# #?????????????????? | | ??????????????????# +?????????????????? | | ??????????????????# #?????????????????? | | ??????????????????# #?????????????????? | | ??????????????????# +?????????????????? | | ?????????????###### #?????????????????? | | ?????????????? d/ #?????????????????? | | ??????????????????# +?????????????????? | | ??????????????????# @ #?????????????????? | | ??????????????????#######/###### #???????????????? | | ???????????????????????# #???????????????? | | ???????????????????????# ##########????????????? | | ???????????????????????# # #????????????? | | ???????????????????????# # #????????????? | | ???????????????????????# + #???????????? | | ???????????##??????????# r# #????????????? | | ??????????? ????????# # #????????????? | | ??????????#[ ??????# # #????????????? | | ??????????# ! = ????# # #???????????? | | ??????????# ??# # ##???????????? | | ??????????# ! ! # # #????????????? | | ??????????+ + ##########????????????? | | ??????????# #p #?????????????????????? | | ??????????# %? # #?????????????????????? | | ??????????# ??]?# #??#?###??????????????? | | ??????????# ???? ?# #?? ??????????????? | | ??????????? ????? ??# #?? T ??????????????? | | ??????????? ??????????# #?? ??????????????? | | ???????????????????????# #?? "??????????????? | | ???????????????????????# #?? "??????????????? | | ???????????????????????# #??? ???????????????? | | ???????????????????????# #??? ???????????????? | | ?????????????????????### #??? ???????????????? | +----------------------------------------------------+ Best States ------------- Heat Dissipation 25 Energy Generation 10 Energy Capacity 250 Matter Stores 400 Matter Capacity 400 Sight Range 16 Terrain Scan Density 10 Evasion (%) 55 Item Schematics ----------------- None Robot Schematics ------------------ None Fabricated ------------ Nothing Repaired ---------- Nothing Studied --------- None Alien Tech Used ----------------- None Achievements -------------- None Challenges ------------ None Game ------ Seed AdvancedDataMount Manual? 0 Play Time 00:25:43 Cumulative 8.5 hours Start 2026.09.22 @ 21:47:54 End 2026.09.22 @ 22:13:23 Sessions 1 Manual Loads 0 Difficulty Rogue Special Mode None Game No. 17 Rogue 14 Adventurer 0 Explorer 3 Win Type - Total 0 Types 0/0/0/0/0/0/0/0/0/0 Lore% 2 Gallery% 9 Achievement% 9 Wizard Run 0 Options --------- Layout 1 ASCII 0 Keyboard 1 Movement Vi Keybinds 0 Fullscreen 1 Font 24/Smallcaps Map View 50x35 Zoom Use 0% Tactical HUD 1 Map Filters NONE Filters NONE Steam 1 RUN: 78b96684-f540-4603-b7e9-edcfa1af8c01